fUSD/lending_fUSD_20240921
["ID","MTS","AMOUNT","RATE_DAILY","PERIOD"]
[338722727,1726897856931,-394.25,0.00012999,2]
[338722728,1726897856942,-500.0,0.00012999,2]
[338722729,1726897856953,-500.0,0.00012999,2]
[338722730,1726897856965,-609.67,0.00012999,2]
[338722731,1726897856976,-318.07,0.00012999,2]
[338722732,1726897856988,-500.0,0.00012999,2]
[338722733,1726897857000,-500.0,0.00012999,2]
[338722734,1726897857011,-405.09,0.00012999,2]
[338722735,1726897857023,-500.0,0.00012999,2]
[338722736,1726897857035,-635.72,0.00012999,2]
[338722737,1726897857046,-572.86,0.00012999,2]
[338722738,1726897857058,-361.31774365,0.00012999,2]
[338722739,1726897857069,-500.0,0.00012999,2]
[338722740,1726897857081,-500.0,0.00012999,2]
[338722741,1726897857092,-500.0,0.00012999,2]
[338722742,1726897857103,-500.0,0.00012999,2]
[338722743,1726897857114,-500.0,0.00012999,2]
[338722744,1726897857125,-500.0,0.00012999,2]
[338722745,1726897857136,-539.41,0.00012999,2]
[338722746,1726897857147,-500.0,0.00012999,2]
[338722747,1726897857158,-500.0,0.00012999,2]
[338722748,1726897857169,-500.0,0.00012999,2]
[338722749,1726897857180,-500.0,0.00012999,2]
[338722750,1726897857191,-645.65,0.00012999,2]
[338722751,1726897857202,-500.0,0.00012999,2]
[338722752,1726897857214,-500.0,0.00012999,2]
[338722753,1726897857225,-500.0,0.00012999,2]
[338722754,1726897857236,-500.0,0.00012999,2]
[338722755,1726897857247,-500.0,0.00012999,2]
[338722756,1726897857258,-500.0,0.00012999,2]
[338722757,1726897857270,-500.0,0.00012999,2]
[338722758,1726897857281,-500.0,0.00012999,2]
[338722759,1726897857292,-500.0,0.00012999,2]
[338722760,1726897857303,-518.18,0.00012999,2]
[338722761,1726897857314,-251.39,0.00012999,2]
[338722762,1726897857325,-500.0,0.00012999,2]
[338722763,1726897857336,-500.0,0.00012999,2]
[338722764,1726897857347,-500.0,0.00012999,2]
[338722765,1726897857358,-500.0,0.00012999,2]
[338722766,1726897857369,-500.0,0.00012999,2]
[338722767,1726897857380,-500.0,0.00012999,2]
[338722768,1726897857391,-523.79,0.00012999,2]
[338722769,1726897857403,-500.0,0.00012999,2]
[338722770,1726897857413,-500.0,0.00012999,2]
[338722771,1726897857425,-500.0,0.00012999,2]
[338722772,1726897857435,-500.0,0.00012999,2]
[338722773,1726897857449,-500.0,0.00012999,2]
[338722774,1726897857460,-517.9,0.00012999,2]
[338722775,1726897857470,-500.0,0.00012999,2]
[338722776,1726897857482,-500.0,0.00012999,2]
[338722777,1726897857492,-276.62,0.00012999,2]
[338722778,1726897857503,-500.0,0.00012999,2]
[338722779,1726897857515,-500.0,0.00012999,2]
[338722780,1726897857526,-500.0,0.00012999,2]
[338722781,1726897857537,-500.0,0.00012999,2]
[338722782,1726897857548,-442.42,0.00012999,2]
[338722783,1726897857559,-500.0,0.00012999,2]
[338722784,1726897857570,-500.0,0.00012999,2]
[338722785,1726897857581,-500.0,0.00012999,2]
[338722786,1726897857592,-636.04,0.00012999,2]
[338722787,1726897857603,-500.0,0.00012999,2]
[338722788,1726897857614,-500.0,0.00012999,2]
[338722789,1726897857625,-500.0,0.00012999,2]
[338722790,1726897857636,-500.0,0.00012999,2]
[338722791,1726897857647,-500.0,0.00012999,2]
[338722792,1726897857658,-500.0,0.00012999,2]
[338722793,1726897857668,-500.0,0.00012999,2]
[338722794,1726897857679,-500.0,0.00012999,2]
[338722795,1726897857690,-500.0,0.00012999,2]
[338722796,1726897857702,-241.95,0.00012999,2]
[338722797,1726897857713,-500.0,0.00012999,2]
[338722798,1726897857723,-500.0,0.00012999,2]
[338722799,1726897857735,-542.99,0.00012999,2]
[338722800,1726897857746,-500.0,0.00012999,2]
[338722801,1726897857756,-500.0,0.00012999,2]
[338722802,1726897857768,-500.0,0.00012999,2]
[338722803,1726897857779,-500.0,0.00012999,2]
[338722804,1726897857790,-460.4,0.00012999,2]
[338722805,1726897857801,-500.0,0.00012999,2]
[338722806,1726897857812,-500.0,0.00012999,2]
[338722807,1726897857823,-500.0,0.00012999,2]
[338722808,1726897857834,-500.0,0.00012999,2]
[338722809,1726897857845,-506.77,0.00012999,2]
[338722810,1726897857856,-500.0,0.00012999,2]
[338722811,1726897857867,-500.0,0.00012999,2]
[338722812,1726897857878,-500.0,0.00012999,2]
[338722813,1726897857890,-500.0,0.00012999,2]
[338722814,1726897857901,-500.0,0.00012999,2]
[338722815,1726897857912,-500.0,0.00012999,2]
[338722816,1726897857924,-500.0,0.00012999,2]
[338722817,1726897857936,-199.87,0.00012999,2]
[338722818,1726897857947,-500.0,0.00012999,2]
[338722819,1726897857958,-466.76,0.00012999,2]
[338722820,1726897857969,-500.0,0.00012999,2]
[338722821,1726897857980,-500.0,0.00012999,2]
[338722822,1726897857991,-573.97,0.00012999,2]
[338722823,1726897858004,-500.0,0.00012999,2]
[338722824,1726897858015,-500.0,0.00012999,2]
[338722825,1726897858027,-500.0,0.00012999,2]
[338722826,1726897858040,-500.0,0.00012999,2]
[338722827,1726897858052,-216.21,0.00012999,2]
[338722828,1726897858063,-500.0,0.00012999,2]
[338722829,1726897858074,-548.76,0.00012999,2]
[338722830,1726897858088,-500.0,0.00012999,2]
[338722831,1726897858100,-500.0,0.00012999,2]
[338722832,1726897858111,-500.0,0.00012999,2]
[338722833,1726897858122,-500.0,0.00012999,2]
[338722834,1726897858134,-216.86,0.00012999,2]
[338722835,1726897858148,-500.0,0.00012999,2]
[338722836,1726897858160,-500.0,0.00012999,2]
[338722837,1726897858171,-500.0,0.00012999,2]
[338722838,1726897858182,-500.0,0.00012999,2]
[338722839,1726897858194,-500.0,0.00012999,2]
[338722840,1726897858206,-552.52,0.00012999,2]
[338722841,1726897858217,-500.0,0.00012999,2]
[338722842,1726897858228,-582.98,0.00012999,2]
[338722843,1726897858239,-500.0,0.00012999,2]
[338722844,1726897858253,-500.0,0.00012999,2]
[338722845,1726897858265,-500.0,0.00012999,2]
[338722846,1726897858278,-500.0,0.00012999,2]
[338722847,1726897858289,-500.0,0.00012999,2]
[338722848,1726897858301,-500.0,0.00012999,2]
[338722849,1726897858313,-500.0,0.00012999,2]
[338722850,1726897858325,-500.0,0.00012999,2]
[338722851,1726897858336,-500.0,0.00012999,2]
[338722852,1726897858348,-500.0,0.00012999,2]
[338722853,1726897858359,-302.48,0.00012999,2]
[338722854,1726897858371,-500.0,0.00012999,2]
[338722855,1726897858383,-500.0,0.00012999,2]
[338722856,1726897858394,-534.51,0.00012999,2]
[338722857,1726897858405,-500.0,0.00012999,2]
[338722858,1726897858416,-613.32,0.00012999,2]
[338722859,1726897858428,-500.0,0.00012999,2]
[338722860,1726897858439,-500.0,0.00012999,2]
[338722861,1726897858452,-500.0,0.00012999,2]
[338722862,1726897858463,-337.16,0.00012999,2]
[338722863,1726897858474,-500.0,0.00012999,2]
[338722864,1726897858485,-500.0,0.00012999,2]
[338722865,1726897858496,-500.0,0.00012999,2]
[338722866,1726897858507,-221.61,0.00012999,2]
[338722867,1726897858518,-500.0,0.00012999,2]
[338722868,1726897858530,-359.99,0.00012999,2]
[338722869,1726897858541,-500.0,0.00012999,2]
[338722870,1726897858552,-619.87,0.00012999,2]
[338722871,1726897858563,-500.0,0.00012999,2]
[338722872,1726897858574,-500.0,0.00012999,2]
[338722873,1726897858585,-500.0,0.00012999,2]
[338722874,1726897858597,-500.0,0.00012999,2]
[338722875,1726897858608,-500.0,0.00012999,2]
[338722876,1726897858619,-328.54,0.00012999,2]
[338722877,1726897858630,-500.0,0.00012999,2]
[338722878,1726897858641,-606.23,0.00012999,2]
[338722879,1726897858651,-500.0,0.00012999,2]
[338722880,1726897858663,-500.0,0.00012999,2]
[338722881,1726897858675,-446.01,0.00012999,2]
[338722882,1726897858688,-500.0,0.00012999,2]
[338722883,1726897858701,-500.0,0.00012999,2]
[338722884,1726897858713,-443.51,0.00012999,2]
[338722885,1726897858725,-500.0,0.00012999,2]
[338722886,1726897858738,-500.0,0.00012999,2]
[338722887,1726897858751,-500.0,0.00012999,2]
[338722888,1726897858763,-500.0,0.00012999,2]
[338722889,1726897858775,-485.9,0.00012999,2]
[338722890,1726897858788,-595.66,0.00012999,2]
[338722891,1726897858800,-500.0,0.00012999,2]
[338722892,1726897858813,-480.29847327,0.00012999,2]
[338722893,1726897858826,-500.0,0.00012999,2]
[338722894,1726897858838,-500.0,0.00012999,2]
[338722895,1726897858851,-500.0,0.00012999,2]
[338722896,1726897858863,-500.0,0.00012999,2]
[338722897,1726897859524,-203.98,0.00012999,2]
[338722898,1726897859548,-500.0,0.00012999,2]
[338722899,1726897859569,-620.33,0.00012999,2]
[338722900,1726897859582,-518.45,0.00012999,2]
[338722901,1726897859591,-500.0,0.00012999,2]
[338722902,1726897859601,-500.0,0.00012999,2]
[338722903,1726897859611,-610.55,0.00012999,2]
[338722904,1726897859623,-500.0,0.00012999,2]
[338722905,1726897859634,-500.0,0.00012999,2]
[338722906,1726897859644,-500.0,0.00012999,2]
[338722907,1726897859654,-500.0,0.00012999,2]
[338722908,1726897859664,-500.0,0.00012999,2]
[338722909,1726897859676,-500.0,0.00012999,2]
[338722910,1726897859687,-500.0,0.00012999,2]
[338722911,1726897859698,-577.18,0.00012999,2]
[338722912,1726897859707,-500.0,0.00012999,2]
[338722913,1726897859716,-500.0,0.00012999,2]
[338722914,1726897859726,-500.0,0.00012999,2]
[338722915,1726897859736,-500.0,0.00012999,2]
[338722916,1726897859746,-500.0,0.00012999,2]
[338722917,1726897859756,-500.0,0.00012999,2]
[338722918,1726897859765,-500.0,0.00012999,2]
[338722919,1726897859775,-500.0,0.00012999,2]
[338722920,1726897859786,-500.0,0.00012999,2]
[338722921,1726897859796,-212.78,0.00012999,2]
[338722922,1726897859806,-500.0,0.00012999,2]
[338722923,1726897859815,-334.09,0.00012999,2]
[338722924,1726897859825,-500.0,0.00012999,2]
[338722925,1726897859836,-500.0,0.00012999,2]
[338722926,1726897859847,-500.0,0.00012999,2]
[338722927,1726897859858,-373.81,0.00012999,2]
[338722928,1726897859868,-500.0,0.00012999,2]
[338722929,1726897859878,-500.0,0.00012999,2]
[338722930,1726897859888,-388.17,0.00012999,2]
[338722931,1726897859898,-500.0,0.00012999,2]
[338722932,1726897859907,-500.0,0.00012999,2]
[338722933,1726897859916,-500.0,0.00012999,2]
[338722934,1726897859926,-500.0,0.00012999,2]
[338722935,1726897859936,-406.86,0.00012999,2]
[338722936,1726897859946,-500.0,0.00012999,2]
[338722937,1726897859955,-514.87,0.00012999,2]
[338722938,1726897859965,-500.0,0.00012999,2]
[338722939,1726897859974,-500.0,0.00012999,2]
[338722940,1726897859984,-500.0,0.00012999,2]
[338722941,1726897859994,-500.0,0.00012999,2]
[338722942,1726897860004,-500.0,0.00012999,2]
[338722943,1726897860014,-179.47,0.00012999,2]
[338722944,1726897860025,-500.0,0.00012999,2]
[338722945,1726897860035,-500.0,0.00012999,2]
[338722946,1726897860044,-500.0,0.00012999,2]
[338722947,1726897860054,-436.83,0.00012999,2]
[338722948,1726897860064,-435.07,0.00012999,2]
[338722949,1726897860074,-500.0,0.00012999,2]
[338722950,1726897860085,-500.0,0.00012999,2]
[338722951,1726897860097,-201.97,0.00012999,2]
[338722952,1726897860108,-500.0,0.00012999,2]
[338722953,1726897860117,-500.0,0.00012999,2]
[338722954,1726897860127,-609.09,0.00012999,2]
[338722955,1726897860137,-500.0,0.00012999,2]
[338722956,1726897860147,-500.0,0.00012999,2]
[338722957,1726897860157,-500.0,0.00012999,2]
[338722958,1726897860168,-217.82,0.00012999,2]
[338722959,1726897860178,-500.0,0.00012999,2]
[338722960,1726897860187,-167.57,0.00012999,2]
[338722961,1726897860198,-500.0,0.00012999,2]
[338722962,1726897860208,-500.0,0.00012999,2]
[338722963,1726897860218,-500.0,0.00012999,2]
[338722964,1726897860228,-500.0,0.00012999,2]
[338722965,1726897860239,-500.000001,0.00012999,2]
[338722966,1726897860249,-500.0,0.00012999,2]
[338722967,1726897860258,-500.0,0.00012999,2]
[338722968,1726897860268,-378.25,0.00012999,2]
[338722969,1726897860278,-500.0,0.00012999,2]
[338722970,1726897860288,-456.18,0.00012999,2]
[338722971,1726897860298,-500.0,0.00012999,2]
[338722972,1726897860307,-500.0,0.00012999,2]
[338722973,1726897860318,-500.0,0.00012999,2]
[338722974,1726897860328,-364.1,0.00012999,2]
[338722975,1726897860338,-470.16,0.00012999,2]
[338722976,1726897860347,-500.0,0.00012999,2]
[338722977,1726897860357,-500.0,0.00012999,2]
[338722978,1726897860367,-500.0,0.00012999,2]
[338722979,1726897860377,-500.0,0.00012999,2]
[338722980,1726897860387,-500.0,0.00012999,2]
[338722981,1726897860396,-468.97757679,0.00012999,2]
[338722982,1726897860406,-500.0,0.00012999,2]
[338722983,1726897860415,-280.56,0.00012999,2]
[338722984,1726897860425,-500.0,0.00012999,2]
[338722985,1726897860434,-336.76940541,0.00012999,2]
[338722986,1726897860448,-500.0,0.00012999,2]
[338722987,1726897860458,-500.0,0.00012999,2]
[338722988,1726897860467,-306.03375828,0.00012999,2]
[338722989,1726897860478,-568.24,0.00012999,2]
[338722990,1726897860489,-500.0,0.00012999,2]
[338722991,1726897860501,-519.07,0.00012999,2]
[338722992,1726897860511,-1224.92,0.00012999,2]
[338722993,1726897860522,-1224.92,0.00012999,2]
[338722994,1726897860532,-1224.92,0.00012999,2]
[338722995,1726897860542,-1224.92,0.00012999,2]
[338722996,1726897860552,-1224.92,0.00012999,2]
[338722997,1726897860561,-1224.92,0.00012999,2]
[338722998,1726897860571,-1224.92,0.00012999,2]
[338722999,1726897860580,-500.0,0.00012999,2]
[338723000,1726897860590,-150.0,0.00012999,2]
[338723001,1726897860600,-150.0,0.00012999,2]
[338723002,1726897860610,-150.0,0.00012999,2]
[338723003,1726897860619,-150.0,0.00012999,2]
[338723004,1726897860629,-150.0,0.00012999,2]
[338723005,1726897860639,-159.96,0.00012999,2]
[338723006,1726897860648,-500.0,0.00012999,2]
[338723007,1726897860658,-500.0,0.00012999,2]
[338723008,1726897860667,-300.36128929,0.00012999,2]
[338723009,1726897860676,-500.0,0.00012999,2]
[338723010,1726897860686,-152.32,0.00012999,2]
[338723011,1726897860696,-500.0,0.00012999,2]
[338723012,1726897860706,-5095.10370771,0.00013,2]
[338723013,1726897860715,-528.97,0.00013,2]
[338723014,1726897860726,-3868.94566622,0.00013001,2]
[338723015,1726897860735,-753.4,0.00013041,2]
[338723016,1726897860745,-753.4,0.00013041,2]
[338723017,1726897860755,-1400.0,0.00013082,2]
[338723018,1726897860764,-779.21,0.000131,2]
[338723019,1726897860774,-3868.94566622,0.00013212,2]
[338723020,1726897860783,-500.0,0.00013273,2]
[338723021,1726897860793,-150.0,0.0001329,2]
[338723022,1726897860803,-203.57022287,0.00013323,2]
[338723023,1726897860812,-182.37,0.0001337,2]
[338723024,1726897860821,-153.54,0.0001337,2]
[338723025,1726897860831,-562.97,0.0001337,2]
[338723026,1726897860840,-3868.94566622,0.00013424,2]
[338723027,1726897860850,-227.0,0.000135,2]
[338723028,1726897860859,-359.0,0.000135,2]
[338723029,1726897860869,-861.76,0.00013509,2]
[338723030,1726897860879,-203.57022287,0.00013519,2]
[338723031,1726897860888,-400.82,0.00013524,2]
[338723032,1726897860897,-500.0,0.00013547,2]
[338723033,1726897860907,-310.59,0.00013554,2]
[338723034,1726897860916,-3868.94566622,0.00013636,2]
[338723035,1726897860926,-391.63,0.00013698,2]
[338723036,1726897860935,-500.0,0.00013698,2]
[338723037,1726897860945,-214.08,0.00013698,2]
[338723038,1726897860955,-500.0,0.00013698,2]
[338723039,1726897860964,-521.32,0.00013698,2]
[338723040,1726897860973,-152.7,0.00013698,2]
[338723041,1726897860982,-500.0,0.00013698,2]
[338723042,1726897860991,-500.0,0.00013698,2]
[338723043,1726897861001,-349.91,0.00013698,2]
[338723044,1726897861011,-500.0,0.00013698,2]
[338723045,1726897861020,-500.0,0.00013698,2]
[338723046,1726897861029,-500.0,0.00013698,2]
[338723047,1726897861039,-331.15,0.00013698,2]
[338723048,1726897861047,-500.0,0.00013698,2]
[338723049,1726897861057,-500.0,0.00013698,2]
[338723050,1726897861067,-500.0,0.00013698,2]
[338723051,1726897861077,-500.0,0.00013698,2]
[338723052,1726897861086,-268.09,0.00013698,2]
[338723053,1726897861096,-500.0,0.00013698,2]
[338723054,1726897861106,-500.0,0.00013698,2]
[338723055,1726897861116,-364.72,0.00013698,2]
[338723056,1726897861126,-500.0,0.00013698,2]
[338723057,1726897861135,-518.48,0.00013698,2]
[338723058,1726897861145,-612.21,0.00013698,2]
[338723059,1726897861155,-500.0,0.00013698,2]
[338723060,1726897861164,-578.86,0.00013698,2]
[338723061,1726897861174,-500.0,0.00013698,2]
[338723062,1726897861184,-617.28,0.00013698,2]
[338723063,1726897861194,-500.0,0.00013698,2]
[338723064,1726897861204,-500.0,0.00013698,2]
[338723065,1726897861213,-347.9,0.00013698,2]
[338723066,1726897861223,-540.84,0.00013698,2]
[338723067,1726897861233,-500.0,0.00013698,2]
[338723068,1726897861243,-500.0,0.00013698,2]
[338723069,1726897861252,-500.0,0.00013698,2]
[338723070,1726897861262,-500.0,0.00013698,2]
[338723071,1726897861272,-500.0,0.00013698,2]
[338723072,1726897861281,-151.7695721,0.00013698,2]
[338723073,1726897861290,-1224.92,0.00013698,2]
[338723074,1726897861301,-200.0,0.00013699,2]
[338723075,1726897861310,-150.0,0.00013699,2]
[338723076,1726897861319,-2751.0,0.00013699,2]
[338723077,1726897861329,-165.04,0.00013699,2]
[338723078,1726897861338,-203.57022287,0.00013715,2]
[338723079,1726897861348,-156.08531913,0.00013747,2]
[338723080,1726897861358,-150.43465659,0.00013784,2]
[338723081,1726897861367,-152.22,0.00013796,2]
[338723082,1726897861378,-500.0,0.00013799,2]
[338723083,1726897861388,-500.0,0.00013799,2]
[338723084,1726897861397,-288.76,0.00013799,2]
[338723085,1726897861407,-500.0,0.00013799,2]
[338723086,1726897861418,-500.0,0.00013799,2]
[338723087,1726897861428,-500.0,0.00013799,2]
[338723088,1726897861439,-500.0,0.00013799,2]
[338723089,1726897861452,-500.0,0.00013799,2]
[338723090,1726897861462,-500.0,0.00013799,2]
[338723091,1726897861471,-303.65,0.00013799,2]
[338723092,1726897861483,-500.0,0.00013799,2]
[338723093,1726897861492,-500.0,0.00013799,2]
[338723094,1726897861502,-500.0,0.00013799,2]
[338723095,1726897861511,-500.0,0.00013799,2]
[338723096,1726897861524,-500.0,0.00013799,2]
[338723097,1726897861535,-500.0,0.00013799,2]
[338723098,1726897861545,-500.0,0.00013799,2]
[338723099,1726897861555,-500.0,0.00013799,2]
[338723100,1726897861565,-500.0,0.00013799,2]
[338723101,1726897861575,-500.0,0.00013799,2]
[338723102,1726897861585,-500.0,0.00013799,2]
[338723103,1726897861595,-500.0,0.00013799,2]
[338723104,1726897861606,-500.0,0.00013799,2]
[338723105,1726897861617,-500.0,0.00013799,2]
[338723106,1726897861626,-534.37,0.00013799,2]
[338723107,1726897861636,-500.0,0.00013799,2]
[338723108,1726897861646,-500.0,0.00013799,2]
[338723109,1726897861656,-500.0,0.00013799,2]
[338723110,1726897861666,-169.73,0.00013799,2]
[338723111,1726897861676,-468.55,0.00013799,2]
[338723112,1726897861686,-245.79,0.00013799,2]
[338723113,1726897861697,-353.67,0.00013799,2]
[338723114,1726897861707,-361.89,0.00013799,2]
[338723115,1726897861717,-2606.32,0.00013799,2]
[338723116,1726897861727,-2606.32,0.00013799,2]
[338723117,1726897861736,-1000.0,0.00013799,2]
[338723118,1726897861746,-1000.0,0.00013799,2]
[338723119,1726897861756,-1224.92,0.00013799,2]
[338723120,1726897861766,-3233.84,0.00013799,2]
[338723121,1726897861775,-3233.84,0.00013799,2]
[338723122,1726897861786,-20000.0,0.00013799,2]
[338723123,1726897861796,-20000.0,0.00013799,2]
[338723124,1726897861805,-151.0,0.000138,2]
[338723125,1726897861816,-151.0,0.000138,2]
[338723126,1726897861826,-151.0,0.000138,2]
[338723127,1726897861837,-193.324274,0.000138,2]
[338723128,1726897861847,-151.0,0.000138,2]
[338723129,1726897861966,-193.324274,0.000138,2]
[338723130,1726897861977,-151.0,0.000138,2]
[338723131,1726897861987,-151.0,0.000138,2]
[338723132,1726897861997,-151.398139,0.000138,2]
[338723133,1726897862007,-263.338984,0.000138,2]
[338723134,1726897862017,-166.332772,0.000138,2]
[338723135,1726897862027,-151.0,0.000138,2]
[338723136,1726897862038,-506.12392,0.000138,2]
[338723137,1726897862047,-151.0,0.000138,2]
[338723138,1726897862057,-151.0,0.000138,2]
[338723139,1726897862067,-1900.0,0.000138,5]
[338723140,1726897862076,-506.12392,0.000138,2]
[338723141,1726897862086,-372.017024,0.000138,2]
[338723142,1726897862095,-201.340644,0.000138,2]
[338723143,1726897862105,-151.0,0.000138,2]
[338723144,1726897862115,-372.017024,0.000138,2]
[338723145,1726897862124,-201.340644,0.000138,2]
[338723146,1726897862135,-151.0,0.000138,2]
[338723147,1726897862145,-175.98577,0.000138,2]
[338723148,1726897862154,-175.98577,0.000138,2]
[338723149,1726897862164,-391665.135964,0.000138,2]
[338723150,1726897862174,-192.633617,0.000138,2]
[338723151,1726897862184,-192.633617,0.000138,2]
[338723152,1726897862194,-151.0,0.000138,2]
[338723153,1726897862206,-1783.30649728,0.000138,2]
[338723154,1726897862215,-151.15,0.00013816,2]
[338723155,1726897862226,-500.0,0.00013821,2]
[338723156,1726897862236,-3868.94566622,0.00013847,2]
[338723157,1726897862246,-451.678,0.00013884,2]
[338723158,1726897862256,-1273.216,0.00013884,2]
[338723159,1726897862266,-1559.679,0.00013884,2]
[338723160,1726897862276,-632.661,0.00013884,2]
[338723161,1726897862286,-944.793,0.00013884,2]
[338723162,1726897862296,-1928.212,0.00013884,2]
[338723163,1726897862306,-560.487,0.00013884,2]
[338723164,1726897862316,-251.727,0.00013884,2]
[338723165,1726897862326,-812.0,0.00013884,2]
[338723166,1726897862336,-1913.0,0.00013884,2]
[338723167,1726897862346,-3470.47,0.00013884,2]
[338723168,1726897862355,-150.0,0.00013884,2]
[338723169,1726897862365,-1145.306,0.00013884,2]
[338723170,1726897862374,-1080.0,0.00013884,2]
[338723171,1726897862384,-15322.02342206,0.00013899,2]
[338723172,1726897862393,-193.324274,0.000139,2]
[338723173,1726897862403,-151.0,0.000139,2]
[338723174,1726897862413,-193.324274,0.000139,2]
[338723175,1726897862423,-151.0,0.000139,2]
[338723176,1726897862433,-151.0,0.000139,2]
[338723177,1726897862445,-506.12392,0.000139,2]
[338723178,1726897862454,-151.0,0.000139,2]
[338723179,1726897862464,-151.0,0.000139,2]
[338723180,1726897862473,-2500.0,0.000139,5]
[338723181,1726897862483,-372.017024,0.000139,2]
[338723182,1726897862492,-201.340644,0.000139,2]
[338723183,1726897862501,-151.0,0.000139,2]
[338723184,1726897862511,-372.017024,0.000139,2]
[338723185,1726897862520,-201.340644,0.000139,2]
[338723186,1726897862530,-506.12392,0.000139,2]
[338723187,1726897862540,-151.0,0.000139,2]
[338723188,1726897862550,-175.98577,0.000139,2]
[338723189,1726897862559,-175.98577,0.000139,2]
[338723190,1726897862568,-192.633617,0.000139,2]
[338723191,1726897862578,-192.633617,0.000139,2]
[338723192,1726897862588,-151.0,0.000139,2]
[338723193,1726897862598,-269115.19735259,0.000139,2]
[338723194,1726897863656,-782.79914444,0.000139,2]
[338723195,1726897863668,-31088.34445756,0.000139,2]
[338723196,1726897863680,-2512.71029907,0.000139,2]
[338723197,1726897863691,-26612.30646997,0.000139,2]
[338723198,1726897863711,-1786.89851028,0.000139,2]
[338723199,1726897863723,-867.57638522,0.000139,2]
[338723200,1726897863735,-468.50164004,0.000139,2]
[338723201,1726897863747,-3161.98146989,0.000139,2]
[338723202,1726897863760,-345.0,0.000139,2]
[338723203,1726897863771,-319.8,0.000139,2]
[338723204,1726897863782,-926.84168262,0.000139,2]
[338723205,1726897863794,-855.78894125,0.000139,2]
[338723206,1726897864268,-8716.7778775,0.000139,2]
[338723207,1726897864282,-3057.76549589,0.000139,2]
[338723208,1726897864294,-237480.83562268,0.000139,2]
[338723209,1726897864305,-193.78259,0.000139,2]
[338723210,1726897864316,-193.78259,0.000139,2]
[338723211,1726897864327,-151.0,0.000139,2]
[338723212,1726897864337,-151.0,0.000139,2]
[338723213,1726897864347,-151.0,0.000139,2]
[338723214,1726897864356,-151.0,0.000139,2]
[338723215,1726897864366,-223.70502,0.000139,2]
[338723216,1726897864376,-223.70502,0.000139,2]
[338723217,1726897864385,-203.57022287,0.00013911,2]
[338723218,1726897864395,-500.0,0.00013973,2]
[338723219,1726897864405,-500.0,0.00013973,2]
[338723220,1726897864414,-500.0,0.00013973,2]
[338723221,1726897864423,-500.0,0.00013973,2]
[338723222,1726897864433,-500.0,0.00013973,2]
[338723223,1726897864443,-351.68,0.00013973,2]
[338723224,1726897864454,-165.0,0.00013996,2]
[338723225,1726897864464,-3868.94566622,0.00014059,2]
[338723226,1726897864473,-150.0,0.00014059,2]